[Event "Titled Tuesday Blitz April 4 Late 2023"]
[White "Alekseenko, Kirill"]
[Black "Klukin, Kirill"]
[WhiteFideId "4135539"]
[BlackFideId "24199273"]
[WhiteElo "2683"]
[BlackElo "2344"]
[Result "0-1"]
[Round "03"]
[TimeControl "180+2"]
[Date "2023.04.04"]
[WhiteClock "0:00:06"]
[BlackClock "0:00:12"]

1. d4 {[%clk 0:03:00]}  d5 {[%clk 0:02:54]} 2. Nc3 {[%clk 0:03:01]}  Nf6 {[%clk 0:02:53]} 3. Bf4 {[%clk 0:03:01]}  a6 {[%clk 0:02:53]} 4. e3 {[%clk 0:03:02]}  e6 {[%clk 0:02:53]} 5. g4 {[%clk 0:03:01]}  c5 {[%clk 0:02:51]} 6. g5 {[%clk 0:02:59]}  Nfd7 {[%clk 0:02:51]} 7. Qf3 {[%clk 0:02:59]}  Nc6 {[%clk 0:02:51]} 8. Nce2 {[%clk 0:02:52]}  b5 {[%clk 0:02:49]} 9. c3 {[%clk 0:02:38]}  b4 {[%clk 0:02:48]} 10. Bh3 {[%clk 0:02:32]}  Be7 {[%clk 0:02:46]} 11. Bg4 {[%clk 0:02:26]}  Bxg5 {[%clk 0:02:40]} 12. Bxg5 {[%clk 0:02:25]}  Qxg5 {[%clk 0:02:41]} 13. Nh3 {[%clk 0:02:26]}  Qf6 {[%clk 0:02:41]} 14. Qg3 {[%clk 0:02:20]}  bxc3 {[%clk 0:02:31]} 15. bxc3 {[%clk 0:02:20]}  cxd4 {[%clk 0:02:31]} 16. cxd4 {[%clk 0:02:21]}  e5 {[%clk 0:02:24]} 17. O-O {[%clk 0:02:16]}  h5 {[%clk 0:02:19]} 18. Bxd7+ {[%clk 0:02:00]}  Bxd7 {[%clk 0:02:19]} 19. dxe5 {[%clk 0:01:33]}  Nxe5 {[%clk 0:02:17]} 20. f4 {[%clk 0:01:31]}  h4 {[%clk 0:01:57]} 21. Qg2 {[%clk 0:01:25]}  Nc4 {[%clk 0:01:03]} 22. Qxd5 {[%clk 0:01:18]}  Rc8 {[%clk 0:01:03]} 23. Ng5 {[%clk 0:01:02]}  Nxe3 {[%clk 0:00:58]} 24. Qe4+ {[%clk 0:01:00]}  Qe7 {[%clk 0:00:58]} 25. Qxe7+ {[%clk 0:01:00]}  Kxe7 {[%clk 0:00:59]} 26. Rf3 {[%clk 0:00:52]}  Nc2 {[%clk 0:00:54]} 27. Raf1 {[%clk 0:00:45]}  Bg4 {[%clk 0:00:52]} 28. R3f2 {[%clk 0:00:45]}  Rhd8 {[%clk 0:00:46]} 29. h3 {[%clk 0:00:46]}  Bf5 {[%clk 0:00:46]} 30. Nc1 {[%clk 0:00:40]}  f6 {[%clk 0:00:40]} 31. Re2+ {[%clk 0:00:27]}  Kf8 {[%clk 0:00:33]} 32. Ne6+ {[%clk 0:00:28]}  Bxe6 {[%clk 0:00:32]} 33. Rxe6 {[%clk 0:00:28]}  Nd4 {[%clk 0:00:33]} 34. Re3 {[%clk 0:00:24]}  Nf5 {[%clk 0:00:32]} 35. Rd3 {[%clk 0:00:20]}  Rxd3 {[%clk 0:00:22]} 36. Nxd3 {[%clk 0:00:21]}  Rc2 {[%clk 0:00:21]} 37. Rf2 {[%clk 0:00:22]}  Rc3 {[%clk 0:00:21]} 38. Rd2 {[%clk 0:00:17]}  Kf7 {[%clk 0:00:19]} 39. Nf2 {[%clk 0:00:16]}  Ne3 {[%clk 0:00:15]} 40. Re2 {[%clk 0:00:15]}  Nd5 {[%clk 0:00:14]} 41. f5 {[%clk 0:00:14]}  Nf4 {[%clk 0:00:14]} 42. Rb2 {[%clk 0:00:14]}  Nxh3+ {[%clk 0:00:13]} 43. Nxh3 {[%clk 0:00:15]}  Rxh3 {[%clk 0:00:14]} 44. Rb7+ {[%clk 0:00:11]}  Kg8 {[%clk 0:00:14]} 45. Kg2 {[%clk 0:00:11]}  Ra3 {[%clk 0:00:14]} 46. Rb2 {[%clk 0:00:12]}  Kh7 {[%clk 0:00:14]} 47. Kh2 {[%clk 0:00:12]}  Kh6 {[%clk 0:00:14]} 48. Rg2 {[%clk 0:00:13]}  Ra5 {[%clk 0:00:13]} 49. Kh3 {[%clk 0:00:12]}  Rxf5 {[%clk 0:00:13]} 50. Rb2 {[%clk 0:00:12]}  Rf4 {[%clk 0:00:13]} 51. a3 {[%clk 0:00:10]}  Ra4 {[%clk 0:00:13]} 52. Rb6 {[%clk 0:00:11]}  Kh5 {[%clk 0:00:12]} 53. Rb3 {[%clk 0:00:11]}  g5 {[%clk 0:00:12]} 54. Rc3 {[%clk 0:00:12]}  g4+ {[%clk 0:00:12]} 55. Kg2 {[%clk 0:00:13]}  Kg5 {[%clk 0:00:12]} 56. Rc5+ {[%clk 0:00:13]}  f5 {[%clk 0:00:13]} 57. Rc3 {[%clk 0:00:14]}  Kf4 {[%clk 0:00:12]} 58. Rb3 {[%clk 0:00:14]}  h3+ {[%clk 0:00:12]} 59. Kh2 {[%clk 0:00:15]}  Rc4 {[%clk 0:00:13]} 60. Rb2 {[%clk 0:00:15]}  Rc3 {[%clk 0:00:13]} 61. a4 {[%clk 0:00:15]}  Ra3 {[%clk 0:00:13]} 62. Rf2+ {[%clk 0:00:10]}  Kg5 {[%clk 0:00:13]} 63. Rc2 {[%clk 0:00:10]}  Rxa4 {[%clk 0:00:13]} 64. Rc8 {[%clk 0:00:10]}  Ra2+ {[%clk 0:00:13]} 65. Kh1 {[%clk 0:00:10]}  g3 {[%clk 0:00:13]} 66. Rc1 {[%clk 0:00:08]}  Kg4 {[%clk 0:00:13]} 67. Rg1 {[%clk 0:00:06]}  Rh2# {[%clk 0:00:12]} 0-1


[Site "https://www.chess.com"]

[Event "Titled Tuesday Blitz April 4 Late 2023"]
[White "Movahed, Sina"]
[Black "Aydincelebi, Kagan"]
[WhiteFideId "42520835"]
[BlackFideId "6361102"]
[WhiteElo "2225"]
[BlackElo "2180"]
[Result "1/2-1/2"]
[Round "03"]
[TimeControl "180+2"]
[Date "2023.04.04"]
[WhiteClock "0:00:05"]
[BlackClock "0:00:13"]

1. Nf3 {[%clk 0:03:00]}  c5 {[%clk 0:02:58]} 2. g3 {[%clk 0:02:59]}  Nc6 {[%clk 0:02:59]} 3. Bg2 {[%clk 0:02:59]}  g6 {[%clk 0:03:00]} 4. O-O {[%clk 0:02:59]}  Bg7 {[%clk 0:03:00]} 5. c4 {[%clk 0:02:58]}  e5 {[%clk 0:03:01]} 6. Nc3 {[%clk 0:02:58]}  Nge7 {[%clk 0:03:01]} 7. Rb1 {[%clk 0:02:56]}  O-O {[%clk 0:03:02]} 8. a3 {[%clk 0:02:56]}  a5 {[%clk 0:03:02]} 9. d3 {[%clk 0:02:55]}  d6 {[%clk 0:03:03]} 10. Ne1 {[%clk 0:02:55]}  Be6 {[%clk 0:03:03]} 11. Bg5 {[%clk 0:02:49]}  f6 {[%clk 0:03:00]} 12. Bd2 {[%clk 0:02:50]}  d5 {[%clk 0:02:55]} 13. cxd5 {[%clk 0:02:44]}  Nxd5 {[%clk 0:02:55]} 14. Rc1 {[%clk 0:02:24]}  b6 {[%clk 0:02:38]} 15. Qb3 {[%clk 0:02:04]}  Nce7 {[%clk 0:01:48]} 16. Nxd5 {[%clk 0:01:55]}  Nxd5 {[%clk 0:01:48]} 17. Qa4 {[%clk 0:01:50]}  Qd6 {[%clk 0:01:37]} 18. Nc2 {[%clk 0:01:48]}  Kh8 {[%clk 0:01:16]} 19. Ne3 {[%clk 0:01:42]}  Nxe3 {[%clk 0:01:14]} 20. Bxe3 {[%clk 0:01:43]}  Rab8 {[%clk 0:01:14]} 21. Rb1 {[%clk 0:01:39]}  f5 {[%clk 0:01:10]} 22. b4 {[%clk 0:01:37]}  axb4 {[%clk 0:01:02]} 23. axb4 {[%clk 0:01:38]}  c4 {[%clk 0:01:03]} 24. dxc4 {[%clk 0:01:34]}  Bxc4 {[%clk 0:01:04]} 25. Rfd1 {[%clk 0:01:12]}  Qe6 {[%clk 0:01:03]} 26. Rbc1 {[%clk 0:00:53]}  Bxe2 {[%clk 0:00:57]} 27. Rd2 {[%clk 0:00:44]}  b5 {[%clk 0:00:56]} 28. Qa7 {[%clk 0:00:44]}  Bc4 {[%clk 0:00:54]} 29. Rd7 {[%clk 0:00:44]}  Qg8 {[%clk 0:00:32]} 30. Rcd1 {[%clk 0:00:33]}  Rbd8 {[%clk 0:00:26]} 31. Bc5 {[%clk 0:00:29]}  Rxd7 {[%clk 0:00:23]} 32. Rxd7 {[%clk 0:00:30]}  Rf7 {[%clk 0:00:24]} 33. Bc6 {[%clk 0:00:22]}  Rxd7 {[%clk 0:00:23]} 34. Qxd7 {[%clk 0:00:23]}  Qf7 {[%clk 0:00:19]} 35. Qxf7 {[%clk 0:00:22]}  Bxf7 {[%clk 0:00:20]} 36. Bxb5 {[%clk 0:00:22]}  Bd5 {[%clk 0:00:20]} 37. Ba6 {[%clk 0:00:21]}  Kg8 {[%clk 0:00:20]} 38. b5 {[%clk 0:00:21]}  Kf7 {[%clk 0:00:20]} 39. b6 {[%clk 0:00:21]}  e4 {[%clk 0:00:21]} 40. b7 {[%clk 0:00:20]}  Be5 {[%clk 0:00:22]} 41. Ba7 {[%clk 0:00:21]}  Bxb7 {[%clk 0:00:18]} 42. Bxb7 {[%clk 0:00:20]}  Kf6 {[%clk 0:00:18]} 43. Kg2 {[%clk 0:00:20]}  g5 {[%clk 0:00:18]} 44. Bb6 {[%clk 0:00:19]}  h5 {[%clk 0:00:18]} 45. h3 {[%clk 0:00:19]}  Kg6 {[%clk 0:00:18]} 46. g4 {[%clk 0:00:17]}  hxg4 {[%clk 0:00:16]} 47. hxg4 {[%clk 0:00:18]}  fxg4 {[%clk 0:00:17]} 48. Bxe4+ {[%clk 0:00:18]}  Kh5 {[%clk 0:00:17]} 49. Bf5 {[%clk 0:00:17]}  Bf4 {[%clk 0:00:17]} 50. Be3 {[%clk 0:00:17]}  Be5 {[%clk 0:00:17]} 51. Bc5 {[%clk 0:00:14]}  Bf4 {[%clk 0:00:17]} 52. Bd4 {[%clk 0:00:14]}  Bd6 {[%clk 0:00:17]} 53. Be6 {[%clk 0:00:12]}  Bf4 {[%clk 0:00:18]} 54. Bg7 {[%clk 0:00:12]}  Kg6 {[%clk 0:00:15]} 55. Bf8 {[%clk 0:00:12]}  Kh5 {[%clk 0:00:15]} 56. Bf7+ {[%clk 0:00:12]}  Kh4 {[%clk 0:00:15]} 57. Be7 {[%clk 0:00:13]}  Be5 {[%clk 0:00:15]} 58. Bd8 {[%clk 0:00:12]}  Bf4 {[%clk 0:00:15]} 59. Be6 {[%clk 0:00:11]}  Kh5 {[%clk 0:00:14]} 60. Bf5 {[%clk 0:00:11]}  Be5 {[%clk 0:00:14]} 61. Bb6 {[%clk 0:00:10]}  Bf4 {[%clk 0:00:14]} 62. Ba5 {[%clk 0:00:11]}  Be5 {[%clk 0:00:14]} 63. Be1 {[%clk 0:00:10]}  Bf4 {[%clk 0:00:15]} 64. Kf1 {[%clk 0:00:11]}  Be5 {[%clk 0:00:14]} 65. Ke2 {[%clk 0:00:11]}  Bf4 {[%clk 0:00:15]} 66. Kd3 {[%clk 0:00:11]}  Kh4 {[%clk 0:00:15]} 67. Ke4 {[%clk 0:00:06]}  Kh5 {[%clk 0:00:14]} 68. Kd5 {[%clk 0:00:05]}  Bh2 {[%clk 0:00:14]} 69. Ke6 {[%clk 0:00:04]}  Bc7 {[%clk 0:00:14]} 70. Kf7 {[%clk 0:00:05]}  Bb6 {[%clk 0:00:14]} 71. Bg6+ {[%clk 0:00:05]}  Kh4 {[%clk 0:00:14]} 72. f3+ {[%clk 0:00:05]}  g3 {[%clk 0:00:14]} 73. Bf5 {[%clk 0:00:06]}  Bf2 {[%clk 0:00:14]} 74. Bxf2 {[%clk 0:00:03]}  gxf2 {[%clk 0:00:15]} 75. Bd3 {[%clk 0:00:03]}  Kg3 {[%clk 0:00:14]} 76. Kg6 {[%clk 0:00:04]}  Kxf3 {[%clk 0:00:12]} 77. Kxg5 {[%clk 0:00:04]}  f1=Q {[%clk 0:00:13]} 78. Bxf1 {[%clk 0:00:05]} 1/2-1/2


[Site "https://www.chess.com"]

[Event "Titled Tuesday Blitz April 4 Late 2023"]
[White "Mindlin, Alon"]
[Black "Indjic, Aleksandar"]
[WhiteFideId "2800071"]
[BlackFideId "911925"]
[WhiteElo "2430"]
[BlackElo "2614"]
[Result "0-1"]
[Round "03"]
[TimeControl "180+2"]
[Date "2023.04.04"]
[WhiteClock "0:00:31"]
[BlackClock "0:00:10"]

1. d4 {[%clk 0:02:59]}  Nf6 {[%clk 0:02:59]} 2. c4 {[%clk 0:02:59]}  e6 {[%clk 0:03:00]} 3. Nc3 {[%clk 0:02:58]}  c5 {[%clk 0:03:00]} 4. d5 {[%clk 0:02:58]}  exd5 {[%clk 0:03:01]} 5. cxd5 {[%clk 0:02:58]}  d6 {[%clk 0:03:01]} 6. e4 {[%clk 0:02:59]}  g6 {[%clk 0:03:02]} 7. f3 {[%clk 0:03:00]}  Bg7 {[%clk 0:03:01]} 8. Be3 {[%clk 0:03:00]}  O-O {[%clk 0:02:57]} 9. Qd2 {[%clk 0:03:00]}  Re8 {[%clk 0:02:55]} 10. Be2 {[%clk 0:02:55]}  h5 {[%clk 0:02:44]} 11. Bd1 {[%clk 0:02:49]}  b5 {[%clk 0:02:39]} 12. Nxb5 {[%clk 0:02:47]}  Ba6 {[%clk 0:02:39]} 13. a4 {[%clk 0:02:42]}  Bxb5 {[%clk 0:02:23]} 14. axb5 {[%clk 0:02:41]}  Nbd7 {[%clk 0:02:17]} 15. Nh3 {[%clk 0:02:37]}  Nb6 {[%clk 0:02:17]} 16. Be2 {[%clk 0:02:30]}  Qd7 {[%clk 0:01:56]} 17. Nf2 {[%clk 0:02:23]}  Qe7 {[%clk 0:01:50]} 18. Bg5 {[%clk 0:02:17]}  Qe5 {[%clk 0:01:45]} 19. Bf4 {[%clk 0:02:12]}  Qe7 {[%clk 0:01:44]} 20. Rc1 {[%clk 0:01:48]}  Nh7 {[%clk 0:01:28]} 21. O-O {[%clk 0:01:32]}  f5 {[%clk 0:01:23]} 22. Bh6 {[%clk 0:01:25]}  Bd4 {[%clk 0:01:10]} 23. Kh1 {[%clk 0:01:18]}  g5 {[%clk 0:01:09]} 24. Nh3 {[%clk 0:01:17]}  f4 {[%clk 0:01:06]} 25. e5 {[%clk 0:01:08]}  Be3 {[%clk 0:00:35]} 26. Qc2 {[%clk 0:01:07]}  Kh8 {[%clk 0:00:27]} 27. Qg6 {[%clk 0:00:50]}  Rg8 {[%clk 0:00:24]} 28. Qxh5 {[%clk 0:00:50]}  Bxc1 {[%clk 0:00:15]} 29. Rxc1 {[%clk 0:00:50]}  Qe8 {[%clk 0:00:13]} 30. Qg4 {[%clk 0:00:47]}  Qg6 {[%clk 0:00:12]} 31. Qe6 {[%clk 0:00:43]}  Rae8 {[%clk 0:00:10]} 32. Qg4 {[%clk 0:00:34]}  Qxh6 {[%clk 0:00:10]} 33. e6 {[%clk 0:00:34]}  Nxd5 {[%clk 0:00:10]} 34. Bd3 {[%clk 0:00:31]}  Ne3 {[%clk 0:00:10]} 0-1


[Site "https://www.chess.com"]

[Event "Titled Tuesday Blitz April 4 Late 2023"]
[White "Thomforde-Toates, Noah"]
[Black "Zhigalko, Sergei"]
[WhiteFideId "30951992"]
[BlackFideId "13502956"]
[WhiteElo "2707"]
[BlackElo "2626"]
[Result "0-1"]
[Round "03"]
[TimeControl "180+2"]
[Date "2023.04.04"]
[WhiteClock "0:00:10"]
[BlackClock "0:00:07"]

1. e4 {[%clk 0:03:00]}  c5 {[%clk 0:02:58]} 2. Nf3 {[%clk 0:02:57]}  Nc6 {[%clk 0:02:58]} 3. Nc3 {[%clk 0:02:53]}  Nf6 {[%clk 0:02:59]} 4. g3 {[%clk 0:02:49]}  e5 {[%clk 0:02:56]} 5. Bg2 {[%clk 0:02:47]}  Be7 {[%clk 0:02:57]} 6. O-O {[%clk 0:02:47]}  O-O {[%clk 0:02:57]} 7. d3 {[%clk 0:02:47]}  d6 {[%clk 0:02:57]} 8. Nd2 {[%clk 0:02:47]}  Nd4 {[%clk 0:02:56]} 9. Nc4 {[%clk 0:02:43]}  Bg4 {[%clk 0:02:41]} 10. f3 {[%clk 0:02:29]}  Be6 {[%clk 0:02:41]} 11. Bg5 {[%clk 0:02:23]}  Nd7 {[%clk 0:02:28]} 12. Bd2 {[%clk 0:02:17]}  b5 {[%clk 0:02:22]} 13. Ne3 {[%clk 0:02:15]}  Nb6 {[%clk 0:02:22]} 14. f4 {[%clk 0:02:10]}  b4 {[%clk 0:02:18]} 15. Ncd5 {[%clk 0:01:54]}  Bxd5 {[%clk 0:02:14]} 16. exd5 {[%clk 0:01:53]}  exf4 {[%clk 0:02:14]} 17. Rxf4 {[%clk 0:01:49]}  Bg5 {[%clk 0:02:14]} 18. Rf1 {[%clk 0:01:45]}  Qe7 {[%clk 0:01:54]} 19. Re1 {[%clk 0:01:34]}  Qf6 {[%clk 0:01:36]} 20. c3 {[%clk 0:01:20]}  bxc3 {[%clk 0:01:35]} 21. bxc3 {[%clk 0:01:21]}  Nf5 {[%clk 0:01:34]} 22. Ng4 {[%clk 0:01:14]}  Qg6 {[%clk 0:01:29]} 23. Nf2 {[%clk 0:01:09]}  Nd7 {[%clk 0:01:17]} 24. Bxg5 {[%clk 0:01:03]}  Qxg5 {[%clk 0:01:18]} 25. Ne4 {[%clk 0:01:03]}  Qg6 {[%clk 0:01:16]} 26. Bh3 {[%clk 0:01:00]}  Ne5 {[%clk 0:01:16]} 27. Bxf5 {[%clk 0:00:52]}  Qxf5 {[%clk 0:01:17]} 28. Nxd6 {[%clk 0:00:51]}  Nf3+ {[%clk 0:01:17]} 29. Kf2 {[%clk 0:00:48]}  Qxd5 {[%clk 0:01:15]} 30. Qxf3 {[%clk 0:00:45]}  Qxd6 {[%clk 0:01:15]} 31. Rad1 {[%clk 0:00:44]}  Rab8 {[%clk 0:01:14]} 32. Re2 {[%clk 0:00:43]}  h6 {[%clk 0:01:05]} 33. Kg2 {[%clk 0:00:37]}  Qa6 {[%clk 0:00:53]} 34. Qd5 {[%clk 0:00:29]}  Rbd8 {[%clk 0:00:46]} 35. Qxc5 {[%clk 0:00:24]}  Rxd3 {[%clk 0:00:43]} 36. Rxd3 {[%clk 0:00:24]}  Qxd3 {[%clk 0:00:44]} 37. Qe3 {[%clk 0:00:22]}  Qc4 {[%clk 0:00:41]} 38. Kf2 {[%clk 0:00:18]}  a6 {[%clk 0:00:31]} 39. Qd4 {[%clk 0:00:18]}  Qc6 {[%clk 0:00:29]} 40. c4 {[%clk 0:00:17]}  Qh1 {[%clk 0:00:28]} 41. h4 {[%clk 0:00:14]}  Rb8 {[%clk 0:00:19]} 42. Qe4 {[%clk 0:00:13]}  Qc1 {[%clk 0:00:12]} 43. Rc2 {[%clk 0:00:13]}  Qb1 {[%clk 0:00:08]} 44. Qe2 {[%clk 0:00:11]}  Rd8 {[%clk 0:00:05]} 45. c5 {[%clk 0:00:11]}  Qh1 {[%clk 0:00:04]} 46. c6 {[%clk 0:00:10]}  Rc8 {[%clk 0:00:02]} 47. c7 {[%clk 0:00:10]}  Qh2+ {[%clk 0:00:02]} 48. Kf3 {[%clk 0:00:10]}  Qh1+ {[%clk 0:00:02]} 49. Kf2 {[%clk 0:00:10]}  Qh2+ {[%clk 0:00:03]} 50. Kf3 {[%clk 0:00:10]}  Qxe2+ {[%clk 0:00:03]} 51. Kxe2 {[%clk 0:00:10]}  Kf8 {[%clk 0:00:04]} 52. Rc6 {[%clk 0:00:10]}  a5 {[%clk 0:00:03]} 53. Ra6 {[%clk 0:00:09]}  Rxc7 {[%clk 0:00:03]} 54. Rxa5 {[%clk 0:00:09]}  Rc3 {[%clk 0:00:04]} 55. Kf2 {[%clk 0:00:10]}  g6 {[%clk 0:00:03]} 56. Ra7 {[%clk 0:00:10]}  h5 {[%clk 0:00:03]} 57. a4 {[%clk 0:00:10]}  Ra3 {[%clk 0:00:03]} 58. a5 {[%clk 0:00:10]}  Kg7 {[%clk 0:00:04]} 59. Ra8 {[%clk 0:00:11]}  Kf6 {[%clk 0:00:04]} 60. a6 {[%clk 0:00:11]}  Kf5 {[%clk 0:00:05]} 61. a7 {[%clk 0:00:10]}  Kg4 {[%clk 0:00:04]} 62. Ke2 {[%clk 0:00:05]}  Kxg3 {[%clk 0:00:04]} 63. Kd2 {[%clk 0:00:06]}  Kxh4 {[%clk 0:00:04]} 64. Kc2 {[%clk 0:00:06]}  Kg4 {[%clk 0:00:04]} 65. Kb2 {[%clk 0:00:06]}  Ra6 {[%clk 0:00:05]} 66. Kb3 {[%clk 0:00:06]}  h4 {[%clk 0:00:05]} 67. Kb4 {[%clk 0:00:06]}  h3 {[%clk 0:00:05]} 68. Kb5 {[%clk 0:00:07]}  Ra1 {[%clk 0:00:05]} 69. Kb6 {[%clk 0:00:07]}  h2 {[%clk 0:00:05]} 70. Rh8 {[%clk 0:00:07]}  Kg3 {[%clk 0:00:06]} 71. Kb7 {[%clk 0:00:06]}  Kg2 {[%clk 0:00:05]} 72. a8=Q {[%clk 0:00:06]}  Rxa8 {[%clk 0:00:04]} 73. Kxa8 {[%clk 0:00:07]}  h1=Q {[%clk 0:00:05]} 74. Rxh1 {[%clk 0:00:08]}  Kxh1 {[%clk 0:00:05]} 75. Kb7 {[%clk 0:00:08]}  g5 {[%clk 0:00:06]} 76. Kc6 {[%clk 0:00:09]}  g4 {[%clk 0:00:07]} 77. Kd6 {[%clk 0:00:10]} 0-1


[Site "https://www.chess.com"]

[Event "Titled Tuesday Blitz April 4 Late 2023"]
[White "Hansen, Eric"]
[Black "Beerdsen, Thomas"]
[WhiteFideId "2606771"]
[BlackFideId "1030108"]
[WhiteElo "2561"]
[BlackElo "2547"]
[Result "0-1"]
[Round "03"]
[TimeControl "180+2"]
[Date "2023.04.04"]
[WhiteClock "0:00:06"]
[BlackClock "0:00:27"]

1. d4 {[%clk 0:02:57]}  Nf6 {[%clk 0:03:00]} 2. c4 {[%clk 0:02:54]}  a6 {[%clk 0:03:01]} 3. Nc3 {[%clk 0:02:51]}  b5 {[%clk 0:03:01]} 4. e3 {[%clk 0:02:47]}  b4 {[%clk 0:03:01]} 5. Na4 {[%clk 0:02:45]}  e6 {[%clk 0:03:00]} 6. Bd3 {[%clk 0:02:43]}  d5 {[%clk 0:02:59]} 7. Nf3 {[%clk 0:02:40]}  dxc4 {[%clk 0:02:57]} 8. Bxc4 {[%clk 0:02:41]}  Nbd7 {[%clk 0:02:58]} 9. a3 {[%clk 0:02:40]}  Bb7 {[%clk 0:02:57]} 10. O-O {[%clk 0:02:39]}  g5 {[%clk 0:02:49]} 11. Bd2 {[%clk 0:02:33]}  g4 {[%clk 0:02:49]} 12. Ne1 {[%clk 0:02:33]}  bxa3 {[%clk 0:02:38]} 13. b4 {[%clk 0:02:33]}  Nb6 {[%clk 0:02:31]} 14. Bb3 {[%clk 0:02:29]}  Bd6 {[%clk 0:02:16]} 15. Nc5 {[%clk 0:02:28]}  Bd5 {[%clk 0:02:14]} 16. Rxa3 {[%clk 0:02:26]}  Nc4 {[%clk 0:02:11]} 17. Ra2 {[%clk 0:02:14]}  h5 {[%clk 0:02:01]} 18. Qc2 {[%clk 0:01:39]}  Nxd2 {[%clk 0:01:31]} 19. Bxd5 {[%clk 0:01:25]}  Bxh2+ {[%clk 0:01:32]} 20. Kh1 {[%clk 0:01:16]}  Nxd5 {[%clk 0:01:31]} 21. Kxh2 {[%clk 0:01:05]}  Nxf1+ {[%clk 0:01:30]} 22. Kg1 {[%clk 0:01:06]}  Nfxe3 {[%clk 0:01:23]} 23. fxe3 {[%clk 0:01:05]}  Qh4 {[%clk 0:01:24]} 24. Ncd3 {[%clk 0:00:57]}  O-O {[%clk 0:01:20]} 25. Qc1 {[%clk 0:00:53]}  Rab8 {[%clk 0:01:12]} 26. Rb2 {[%clk 0:00:50]}  Qg5 {[%clk 0:01:08]} 27. Nc2 {[%clk 0:00:47]}  Nc3 {[%clk 0:01:06]} 28. Qe1 {[%clk 0:00:46]}  Ne4 {[%clk 0:01:06]} 29. Ra2 {[%clk 0:00:45]}  Rb6 {[%clk 0:01:04]} 30. Ra5 {[%clk 0:00:45]}  Rb5 {[%clk 0:00:55]} 31. Rxa6 {[%clk 0:00:44]}  g3 {[%clk 0:00:56]} 32. Nf4 {[%clk 0:00:42]}  Rf5 {[%clk 0:00:49]} 33. Qe2 {[%clk 0:00:31]}  Qh4 {[%clk 0:00:49]} 34. Nh3 {[%clk 0:00:27]}  Nf2 {[%clk 0:00:42]} 35. e4 {[%clk 0:00:19]}  Nxh3+ {[%clk 0:00:42]} 36. gxh3 {[%clk 0:00:20]}  Rf2 {[%clk 0:00:36]} 37. Qe3 {[%clk 0:00:20]}  Rxc2 {[%clk 0:00:37]} 38. Ra5 {[%clk 0:00:18]}  f6 {[%clk 0:00:31]} 39. Qd3 {[%clk 0:00:13]}  Rc1+ {[%clk 0:00:29]} 40. Kg2 {[%clk 0:00:13]}  Rh1 {[%clk 0:00:27]} 41. Qxg3+ {[%clk 0:00:05]}  Qxg3+ {[%clk 0:00:27]} 42. Kxg3 {[%clk 0:00:06]}  Rb8 {[%clk 0:00:27]} 0-1


[Site "https://www.chess.com"]

[Event "Titled Tuesday Blitz April 4 Late 2023"]
[White "Rodshtein, Maxim"]
[Black "Makarian, Rudik"]
[WhiteFideId "2806851"]
[BlackFideId "44105681"]
[WhiteElo "2555"]
[BlackElo "2430"]
[Result "0-1"]
[Round "03"]
[TimeControl "180+2"]
[Date "2023.04.04"]
[WhiteClock "0:00:58"]
[BlackClock "0:00:27"]

1. d4 {[%clk 0:03:00]}  Nf6 {[%clk 0:02:59]} 2. c4 {[%clk 0:03:00]}  e6 {[%clk 0:02:59]} 3. Nc3 {[%clk 0:03:01]}  d5 {[%clk 0:02:59]} 4. e3 {[%clk 0:03:01]}  Be7 {[%clk 0:02:49]} 5. cxd5 {[%clk 0:02:59]}  exd5 {[%clk 0:02:49]} 6. Bd3 {[%clk 0:02:59]}  O-O {[%clk 0:02:48]} 7. Nge2 {[%clk 0:03:00]}  c6 {[%clk 0:02:44]} 8. O-O {[%clk 0:02:59]}  a5 {[%clk 0:02:43]} 9. f3 {[%clk 0:02:58]}  b5 {[%clk 0:02:38]} 10. Nf4 {[%clk 0:02:54]}  b4 {[%clk 0:02:34]} 11. Nce2 {[%clk 0:02:52]}  Nbd7 {[%clk 0:02:24]} 12. e4 {[%clk 0:02:44]}  dxe4 {[%clk 0:02:20]} 13. fxe4 {[%clk 0:02:45]}  c5 {[%clk 0:02:20]} 14. e5 {[%clk 0:02:44]}  Ne8 {[%clk 0:02:20]} 15. Qc2 {[%clk 0:02:13]}  g6 {[%clk 0:02:10]} 16. e6 {[%clk 0:02:11]}  fxe6 {[%clk 0:01:39]} 17. Be3 {[%clk 0:02:08]}  Ng7 {[%clk 0:01:27]} 18. dxc5 {[%clk 0:02:00]}  Qc7 {[%clk 0:01:26]} 19. Rac1 {[%clk 0:01:43]}  Ne5 {[%clk 0:01:20]} 20. Be4 {[%clk 0:01:40]}  Rb8 {[%clk 0:01:04]} 21. h3 {[%clk 0:01:32]}  Ba6 {[%clk 0:01:02]} 22. b3 {[%clk 0:01:17]}  Rbd8 {[%clk 0:00:59]} 23. Rfd1 {[%clk 0:01:15]}  Bg5 {[%clk 0:00:40]} 24. Kh1 {[%clk 0:01:06]}  Rxd1+ {[%clk 0:00:36]} 25. Rxd1 {[%clk 0:01:04]}  Bxe2 {[%clk 0:00:37]} 26. Qxe2 {[%clk 0:00:59]}  Bxf4 {[%clk 0:00:37]} 27. Bg1 {[%clk 0:01:00]}  Nh5 {[%clk 0:00:35]} 28. Bf2 {[%clk 0:00:58]}  Bg3 {[%clk 0:00:28]} 29. Bg1 {[%clk 0:00:58]}  Bh4 {[%clk 0:00:27]} 0-1


[Site "https://www.chess.com"]

[Event "Titled Tuesday Blitz April 4 Late 2023"]
[White "Barbosa, Evandro Amorim"]
[Black "Makhnev, Denis"]
[WhiteFideId "2115824"]
[BlackFideId "13707647"]
[WhiteElo "2439"]
[BlackElo "2515"]
[Result "0-1"]
[Round "03"]
[TimeControl "180+2"]
[Date "2023.04.04"]
[WhiteClock "0:00:02"]
[BlackClock "0:00:18"]

1. e4 {[%clk 0:03:00]}  e5 {[%clk 0:02:59]} 2. Nf3 {[%clk 0:03:01]}  Nc6 {[%clk 0:03:00]} 3. Bb5 {[%clk 0:03:01]}  a6 {[%clk 0:03:00]} 4. Ba4 {[%clk 0:03:01]}  Nf6 {[%clk 0:03:01]} 5. O-O {[%clk 0:03:01]}  b5 {[%clk 0:02:59]} 6. Bb3 {[%clk 0:03:01]}  Be7 {[%clk 0:03:00]} 7. Re1 {[%clk 0:03:01]}  d6 {[%clk 0:03:00]} 8. c3 {[%clk 0:03:00]}  O-O {[%clk 0:03:01]} 9. h3 {[%clk 0:03:00]}  Nb8 {[%clk 0:03:01]} 10. d4 {[%clk 0:03:00]}  Nbd7 {[%clk 0:03:02]} 11. Nbd2 {[%clk 0:03:00]}  Bb7 {[%clk 0:03:02]} 12. Bc2 {[%clk 0:03:00]}  Re8 {[%clk 0:03:02]} 13. Nf1 {[%clk 0:03:00]}  Bf8 {[%clk 0:03:03]} 14. Ng3 {[%clk 0:03:00]}  g6 {[%clk 0:03:04]} 15. a4 {[%clk 0:02:59]}  Nb6 {[%clk 0:03:04]} 16. b3 {[%clk 0:02:58]}  bxa4 {[%clk 0:03:03]} 17. bxa4 {[%clk 0:02:58]}  a5 {[%clk 0:03:04]} 18. Bg5 {[%clk 0:02:54]}  h6 {[%clk 0:03:04]} 19. Bh4 {[%clk 0:02:33]}  Bg7 {[%clk 0:02:52]} 20. Rb1 {[%clk 0:02:22]}  Ba6 {[%clk 0:02:52]} 21. Qc1 {[%clk 0:02:14]}  Kh7 {[%clk 0:02:39]} 22. Rd1 {[%clk 0:02:10]}  Qe7 {[%clk 0:02:30]} 23. Nh2 {[%clk 0:02:06]}  Qe6 {[%clk 0:02:27]} 24. d5 {[%clk 0:01:58]}  Qd7 {[%clk 0:02:26]} 25. f4 {[%clk 0:01:48]}  Nc4 {[%clk 0:01:09]} 26. Rf1 {[%clk 0:01:28]}  Ng8 {[%clk 0:00:48]} 27. f5 {[%clk 0:01:28]}  c6 {[%clk 0:00:46]} 28. Ng4 {[%clk 0:01:22]}  Rab8 {[%clk 0:00:33]} 29. Rxb8 {[%clk 0:01:20]}  Rxb8 {[%clk 0:00:33]} 30. dxc6 {[%clk 0:01:06]}  Qxc6 {[%clk 0:00:21]} 31. fxg6+ {[%clk 0:01:06]}  fxg6 {[%clk 0:00:22]} 32. Rf7 {[%clk 0:01:05]}  Rb7 {[%clk 0:00:22]} 33. Qf1 {[%clk 0:00:55]}  Ne3 {[%clk 0:00:18]} 34. Qf2 {[%clk 0:00:05]}  Rxf7 {[%clk 0:00:18]} 35. Qxf7 {[%clk 0:00:04]}  Nxc2 {[%clk 0:00:19]} 36. Bf6 {[%clk 0:00:02]}  Qb7 {[%clk 0:00:18]} 0-1


[Site "https://www.chess.com"]